[Event "EWIBCC 2019"]
[Site "Monte-Carlo"]
[Date "2019.11.29"]
[Round "7.11"]
[White "Babiy, Olga"]
[Black "Salimova, Nurgyul"]
[Result "1-0"]
[ECO "C55"]
[WhiteElo "2249"]
[BlackElo "2370"]
[Annotator "ChessBase"]
[PlyCount "117"]
[EventDate "2019.11.29"]
[EventType "swiss"]
[EventCountry "MNC"]
[SourceTitle "playchess.com"]
[Source "ChessBase"]
[SourceQuality "1"]
[TimeControl "180+2"]

1. e4 {[%emt 0:00:00]} e5 {[%emt 0:00:00]} 2. Nf3 {[%emt 0:00:00]} Nc6 {[%emt 0:00:00]} 3. Bc4 {[%emt 0:00:01]} Nf6 {[%emt 0:00:01]} 4. d3 {[%emt 0:00:07]} Be7 {[%emt 0:00:01]} 5. a4 {[%emt 0:00:03]} O-O {[%emt 0:00:04]} 6. Nc3 {[%emt 0:00:04]} d6 {[%emt 0:00:04]} 7. h3 {[%emt 0:00:01]} Be6 {[%emt 0:00:08]} 8. O-O {[%emt 0:00:07]} Qd7 {[%emt 0:00:06]} 9. Nd5 {[%emt 0:00:12]} Bxd5 {[%emt 0:00:19]} 10. Bxd5 {[%emt 0:00:12]} Nxd5 {[%emt 0:00:01]} 11. exd5 {[%emt 0:00:01]} Nb4 {[%emt 0:00:14]} 12. c4 {[%emt 0:00:06]} Qf5 {[%emt 0:00:14]} 13. Ne1 {[%emt 0:00:07]} c6 {[%emt 0:00:20]} 14. Qb3 {[%emt 0:00:20]} a5 {[%emt 0:00:01]} 15. Bd2 {[%emt 0:00:03]} cxd5 {[%emt 0:00:12]} 16. Bxb4 {[%emt 0:00:03]} axb4 {[%emt 0:00:02]} 17. cxd5 {[%emt 0:00:08]} e4 {[%emt 0:01:26]} 18. dxe4 Qxe4 {[%emt 0:00:01]} 19. Nc2 {[%emt 0:00:16]} Bf6 {[%emt 0:00:04]} 20. Nxb4 {[%emt 0:00:05]} Rac8 {[%emt 0:00:08]} 21. Rac1 {[%emt 0:00:20]} Qd4 {[%emt 0:00:06]} 22. Nd3 {[%emt 0:00:08]} Rfe8 {[%emt 0:00:04]} 23. Rfd1 {[%emt 0:00:10]} Rxc1 {[%emt 0:00:03]} 24. Rxc1 {[%emt 0:00:03]} h6 {[%emt 0:00:01]} 25. Rd1 {[%emt 0:00:06]} Re7 {[%emt 0:00:06]} 26. g3 {[%emt 0:00:25]} g6 {[%emt 0:00:00]} 27. Qb5 {[%emt 0:00:06]} Kg7 {[%emt 0:00:03]} 28. b3 {[%emt 0:00:02]} h5 {[%emt 0:00:02]} 29. Qc4 {[%emt 0:00:02]} h4 {[%emt 0:00:03]} 30. Qxd4 Bxd4 {[%emt 0:00:01]} 31. gxh4 {[%emt 0:00:06]} Re4 {[%emt 0:00:02]} 32. Kg2 {[%emt 0:00:08]} Rxh4 {[%emt 0:00:01]} 33. f4 {[%emt 0:00:03]} Rh8 {[%emt 0:00:02]} 34. Rc1 {[%emt 0:00:12]} Re8 {[%emt 0:00:01]} 35. Rc7 {[%emt 0:00:05]} Re2+ {[%emt 0:00:01]} 36. Kf1 {[%emt 0:00:01]} Re3 {[%emt 0:00:01]} 37. Nc1 {[%emt 0:00:06]} Rxh3 {[%emt 0:00:03]} 38. Ke2 {[%emt 0:00:02]} Rc3 {[%emt 0:00:02]} 39. Rxc3 {[%emt 0:00:03]} Bxc3 {[%emt 0:00:01]} 40. Kd3 {[%emt 0:00:02]} Bb2 {[%emt 0:00:02]} 41. Ne2 {[%emt 0:00:02]} Kf6 {[%emt 0:00:00]} 42. b4 {[%emt 0:00:03]} Kf5 {[%emt 0:00:01]} 43. a5 {[%emt 0:00:15]} Bf6 {[%emt 0:00:06]} 44. b5 {[%emt 0:00:00]} Bd8 {[%emt 0:00:01]} 45. a6 {[%emt 0:00:00]} bxa6 {[%emt 0:00:01]} 46. bxa6 {[%emt 0:00:00]} Bb6 {[%emt 0:00:00]} 47. Kc4 {[%emt 0:00:02]} Ke4 {[%emt 0:00:02]} 48. Kb5 {[%emt 0:00:01]} Bc5 {[%emt 0:00:01]} 49. Kc6 {[%emt 0:00:04]} Kf3 {[%emt 0:00:02]} 50. Nc1 {[%emt 0:00:01]} Be3 {[%emt 0:00:05]} 51. Nd3 {[%emt 0:00:04]} f6 {[%emt 0:00:01]} 52. Kxd6 {[%emt 0:00:01]} g5 {[%emt 0:00:01]} 53. fxg5 {[%emt 0:00:01]} fxg5 {[%emt 0:00:01]} 54. Ke6 {[%emt 0:00:02]} g4 {[%emt 0:00:01]} 55. Ne5+ {[%emt 0:00:00]} Kf4 {[%emt 0:00:01]} 56. Nxg4 {[%emt 0:00:01]} Kxg4 {[%emt 0:00:01]} 57. d6 {[%emt 0:00:01]} Bb6 {[%emt 0:00:01]} 58. d7 {[%emt 0:00:01]} Kf4 {[%emt 0:00:02]} 59. a7 {[%emt 0:00:03]} 1-0

[Event "EWIBCC 2019"]
[Site "Monte-Carlo"]
[Date "2019.11.29"]
[Round "7.12"]
[White "Savina, Anastasia"]
[Black "Reizniece-Ozola, Dana"]
[Result "1/2-1/2"]
[ECO "E90"]
[WhiteElo "2354"]
[BlackElo "2305"]
[Annotator "RC"]
[PlyCount "174"]
[EventDate "2019.11.29"]
[EventType "swiss"]
[EventCountry "MNC"]
[SourceTitle "playchess.com"]
[Source "ChessBase"]
[SourceQuality "1"]
[TimeControl "180+2"]

1. d4 {[%emt 0:00:00]} Nf6 {[%emt 0:00:00]} 2. c4 {[%emt 0:00:02]} g6 {[%emt 0:00:00]} 3. Nc3 {[%emt 0:00:01]} Bg7 {[%emt 0:00:00]} 4. e4 {[%emt 0:00:01]} d6 {[%emt 0:00:00]} 5. Nf3 {[%emt 0:00:02]} O-O {[%emt 0:00:02]} 6. h3 {[%emt 0:00:01]} e5 {[%emt 0:00:04]} 7. d5 {[%emt 0:00:01]} a5 {[%emt 0:00:01]} 8. Be3 {[%emt 0:00:03]} Na6 {[%emt 0:00:01]} 9. g4 {[%emt 0:00:01]} Nd7 {[%emt 0:00:04]} 10. a3 {[%emt 0:00:03]} c5 {[%emt 0:01:00]} 11. dxc6 {[%emt 0:00:12]} bxc6 {[%emt 0:00:01]} 12. Qxd6 {[%emt 0:00:10]} Rb8 {[%emt 0:00:06]} 13. O-O-O {[%emt 0:00:13]} Re8 {[%emt 0:00:22]} 14. Qxc6 {[%emt 0:00:12]} Re6 {[%emt 0:00:04]} 15. Qd5 {[%emt 0:00:38]} h6 {[%emt 0:00:03]} 16. c5 {[%emt 0:00:32]} Nc7 {[%emt 0:00:02]} 17. Qd2 {[%emt 0:00:04]} Qe8 {[%emt 0:00:15]} 18. Bc4 {[%emt 0:00:18]} Rc6 {[%emt 0:00:06]} 19. Na4 {[%emt 0:00:10]} Bf8 {[%emt 0:00:14]} 20. Kb1 {[%emt 0:00:05]} Nxc5 {[%emt 0:00:07]} 21. Nxc5 {[%emt 0:00:03]} Bxc5 {[%emt 0:00:02]} 22. Bxc5 {[%emt 0:00:17]} Rxc5 {[%emt 0:00:00]} 23. Rc1 {[%emt 0:00:04]} Kg7 {[%emt 0:00:11]} 24. Rhd1 {[%emt 0:00:07]} Bb7 {[%emt 0:00:21]} 25. Bd5 {[%emt 0:00:11]} Rb5 {[%emt 0:00:06]} 26. Rc2 {[%emt 0:00:07]} Na6 {[%emt 0:00:06]} 27. Qc3 {[%emt 0:00:06]} Nc5 {[%emt 0:00:10]} 28. Qxe5+ {[%emt 0:00:04]} Qxe5 {[%emt 0:00:01]} 29. Nxe5 {[%emt 0:00:01]} Nxe4 {[%emt 0:00:01]} 30. Bxb7 {[%emt 0:00:06]} R8xb7 {[%emt 0:00:30]} 31. Nc4 {[%emt 0:00:02]} a4 {[%emt 0:00:00]} 32. f3 {[%emt 0:00:02]} Nc5 {[%emt 0:00:00]} 33. Nd6 {[%emt 0:00:01]} Rd7 {[%emt 0:00:00]} 34. Nxb5 {[%emt 0:00:03]} Rxd1+ {[%emt 0:00:00]} 35. Rc1 {[%emt 0:00:01]} Rd5 {[%emt 0:00:10]} 36. Nc3 {[%emt 0:00:04]} Rd3 {[%emt 0:00:00]} 37. Ne4 {[%emt 0:00:02]} Nb3 {[%emt 0:00:00]} 38. Rc3 {[%emt 0:00:02]} Rd1+ {[%emt 0:00:00]} 39. Kc2 {[%emt 0:00:02]} Rc1+ {[%emt 0:00:00]} 40. Kd3 {[%emt 0:00:00]} Rb1 {[%emt 0:00:00]} 41. Rc2 {[%emt 0:00:02]} Rf1 {[%emt 0:00:00]} 42. Ke3 {[%emt 0:00:01]} Rh1 {[%emt 0:00:00]} 43. Nf2 {[%emt 0:00:02]} Re1+ {[%emt 0:00:00]} 44. Kf4 {[%emt 0:00:01]} g5+ {[%emt 0:00:05]} 45. Kg3 {[%emt 0:00:00]} Nd4 {[%emt 0:00:02]} 46. Rd2 {[%emt 0:00:05]} Ne2+ {[%emt 0:00:01]} 47. Kh2 {[%emt 0:00:02]} Nf4 {[%emt 0:00:01]} 48. Nd3 {[%emt 0:00:03]} Nxd3 {[%emt 0:00:01]} 49. Rxd3 {[%emt 0:00:01]} Re2+ {[%emt 0:00:01]} 50. Kg3 {[%emt 0:00:00]} Rxb2 {[%emt 0:00:00]} 51. Rd4 {[%emt 0:00:01]} Ra2 {[%emt 0:00:01]} 52. Rxa4 {[%emt 0:00:12]} Ra1 {[%emt 0:00:01]} 53. Ra8 {[%emt 0:00:00]} Ra2 {[%emt 0:00:01]} 54. a4 {[%emt 0:00:00]} Ra3 {[%emt 0:00:01]} 55. Kf2 {[%emt 0:00:00]} Kh7 {[%emt 0:00:02]} 56. a5 {[%emt 0:00:00]} Kg7 {[%emt 0:00:01]} 57. a6 {[%emt 0:00:00]} Kh7 {[%emt 0:00:01]} 58. a7 {[%emt 0:00:07]} Kg7 {[%emt 0:00:01]} 59. Kg3 {[%emt 0:00:01]} Kh7 {[%emt 0:00:02]} 60. h4 {[%emt 0:00:00]} Kg7 {[%emt 0:00:00]} 61. hxg5 {[%emt 0:00:03]} hxg5 {[%emt 0:00:01]} 62. Kf2 {[%emt 0:00:01]} Kf6 {[%emt 0:00:03]} 63. Ke2 {[%emt 0:00:01]} Kg7 {[%emt 0:00:01]} 64. Kd2 {[%emt 0:00:01]} Kh7 {[%emt 0:00:02]} 65. Kc2 {[%emt 0:00:01]} Kg7 {[%emt 0:00:02]} 66. Kb2 {[%emt 0:00:01]} Ra6 {[%emt 0:00:02]} 67. Kc3 {[%emt 0:00:01]} Ra4 {[%emt 0:00:03]} 68. Kb3 {[%emt 0:00:01]} Ra1 {[%emt 0:00:00]} 69. Kc4 {[%emt 0:00:01]} Ra3 {[%emt 0:00:02]} 70. Kc5 {[%emt 0:00:04]} Ra1 {[%emt 0:00:02]} 71. Kb6 {[%emt 0:00:02]} Rb1+ {[%emt 0:00:01]} 72. Kc6 {[%emt 0:00:01]} Ra1 {[%emt 0:00:02]} 73. Kd6 {[%emt 0:00:03]} Ra3 {[%emt 0:00:05]} 74. Kc5 {[%emt 0:00:06]} Ra2 {[%emt 0:00:02]} 75. Kd4 {[%emt 0:00:05]} Ra3 {[%emt 0:00:01]} 76. Ke4 {[%emt 0:00:02]} Ra5 {[%emt 0:00:02]} 77. Ke3 {[%emt 0:00:03]} Ra4 {[%emt 0:00:01]} 78. Kd3 {[%emt 0:00:02]} Ra3+ {[%emt 0:00:02]} 79. Kc4 {[%emt 0:00:02]} Ra1 {[%emt 0:00:01]} 80. Kd5 {[%emt 0:00:02]} Ra4 {[%emt 0:00:05]} 81. Kd6 {[%emt 0:00:02]} Ra3 {[%emt 0:00:02]} 82. Ke5 {[%emt 0:00:02]} Ra5+ {[%emt 0:00:01]} 83. Kd6 {[%emt 0:00:01]} Ra3 {[%emt 0:00:00]} 84. Kc7 {[%emt 0:00:04]} Rc3+ {[%emt 0:00:02]} 85. Kb6 {[%emt 0:00:01]} Rb3+ {[%emt 0:00:00]} 86. Kc6 {[%emt 0:00:02]} Ra3 {[%emt 0:00:01]} 87. Kb6 {[%emt 0:00:03]} Ra2 {[%emt 0:00:01]} 1/2-1/2

[Event "EWIBCC 2019"]
[Site "Monte-Carlo"]
[Date "2019.11.29"]
[Round "7.15"]
[White "Rogule, Laura"]
[Black "Berend, Elvira"]
[Result "0-1"]
[ECO "A22"]
[WhiteElo "2293"]
[BlackElo "2349"]
[Annotator "ChessBase"]
[PlyCount "122"]
[EventDate "2019.11.29"]
[EventType "swiss"]
[EventCountry "MNC"]
[SourceTitle "playchess.com"]
[Source "ChessBase"]
[SourceQuality "1"]
[TimeControl "180+2"]

1. c4 {[%emt 0:00:00]} e5 {[%emt 0:00:00]} 2. Nc3 {[%emt 0:00:00]} Nf6 {[%emt 0:00:00]} 3. g3 {[%emt 0:00:02]} Bb4 {[%emt 0:00:04]} 4. Bg2 {[%emt 0:00:01]} O-O {[%emt 0:00:03]} 5. e4 {[%emt 0:00:16]} c6 {[%emt 0:00:03]} 6. Nge2 {[%emt 0:00:02]} Na6 {[%emt 0:00:08]} 7. O-O {[%emt 0:00:08]} Nc7 {[%emt 0:00:08]} 8. d4 {[%emt 0:00:05]} exd4 {[%emt 0:00:10]} 9. Qxd4 {[%emt 0:00:02]} Ne6 {[%emt 0:00:04]} 10. Qd1 {[%emt 0:00:08]} d6 {[%emt 0:00:05]} 11. h3 {[%emt 0:00:17]} Re8 {[%emt 0:00:09]} 12. Kh2 {[%emt 0:00:14]} Nc5 {[%emt 0:00:15]} 13. Qc2 {[%emt 0:00:08]} Qe7 {[%emt 0:00:02]} 14. a3 {[%emt 0:00:47]} Bxc3 {[%emt 0:00:08]} 15. Nxc3 {[%emt 0:00:02]} a5 {[%emt 0:00:08]} 16. Re1 {[%emt 0:00:35]} a4 {[%emt 0:00:05]} 17. Bf4 {[%emt 0:00:06]} Be6 {[%emt 0:00:10]} 18. Rad1 {[%emt 0:00:43]} Red8 19. Qe2 {[%emt 0:00:00]} Nb3 {[%emt 0:00:07]} 20. g4 {[%emt 0:00:00]} Na5 {[%emt 0:00:13]} 21. Nxa4 {[%emt 0:00:00]} Bxc4 {[%emt 0:00:02]} 22. Qf3 {[%emt 0:00:00]} Bb3 {[%emt 0:00:03]} 23. Nc3 {[%emt 0:00:00]} Bxd1 {[%emt 0:00:02]} 24. Rxd1 {[%emt 0:00:12]} Nc4 {[%emt 0:00:05]} 25. Qe2 {[%emt 0:00:00]} d5 {[%emt 0:00:10]} 26. g5 {[%emt 0:00:00]} Ne8 {[%emt 0:00:12]} 27. exd5 {[%emt 0:00:01]} Qxe2 {[%emt 0:00:02]} 28. Nxe2 {[%emt 0:00:01]} cxd5 {[%emt 0:00:01]} 29. Bxd5 {[%emt 0:00:02]} Nxb2 {[%emt 0:00:04]} 30. Rd2 {[%emt 0:00:01]} Na4 {[%emt 0:00:05]} 31. Bxb7 {[%emt 0:00:03]} Rxd2 {[%emt 0:00:02]} 32. Bxd2 {[%emt 0:00:01]} Rd8 {[%emt 0:00:06]} 33. Bb4 {[%emt 0:00:02]} Nb6 {[%emt 0:00:04]} 34. Ba5 {[%emt 0:00:04]} Rb8 {[%emt 0:00:03]} 35. Be4 {[%emt 0:00:01]} Nc4 {[%emt 0:00:03]} 36. Bb4 {[%emt 0:00:01]} Ncd6 {[%emt 0:00:02]} 37. Bd3 {[%emt 0:00:03]} Rd8 {[%emt 0:00:05]} 38. Nf4 {[%emt 0:00:02]} Nc7 {[%emt 0:00:09]} 39. a4 {[%emt 0:00:01]} Nb7 {[%emt 0:00:06]} 40. a5 {[%emt 0:00:02]} Rd4 {[%emt 0:00:10]} 41. Bd2 {[%emt 0:00:01]} Nd5 {[%emt 0:00:10]} 42. Nxd5 {[%emt 0:00:03]} Rxd5 {[%emt 0:00:36]} 43. Be4 {[%emt 0:00:03]} Rxd2 {[%emt 0:00:00]} 44. Bxb7 {[%emt 0:00:01]} Rxf2+ {[%emt 0:00:00]} 45. Kg3 {[%emt 0:00:01]} Ra2 {[%emt 0:00:00]} 46. a6 {[%emt 0:00:01]} Kf8 {[%emt 0:00:00]} 47. h4 {[%emt 0:00:01]} Ke7 {[%emt 0:00:00]} 48. Kf4 {[%emt 0:00:01]} Kd6 {[%emt 0:00:00]} 49. Kf5 {[%emt 0:00:02]} Ra5+ {[%emt 0:00:00]} 50. Kf4 {[%emt 0:00:01]} Ra4+ {[%emt 0:00:00]} 51. Kg3 {[%emt 0:00:01]} Ke5 {[%emt 0:00:00]} 52. Kh3 {[%emt 0:00:03]} f5 {[%emt 0:00:00]} 53. gxf6 {[%emt 0:00:01]} gxf6 {[%emt 0:00:00]} 54. Kg3 {[%emt 0:00:02]} f5 {[%emt 0:00:00]} 55. h5 {[%emt 0:00:03]} h6 {[%emt 0:00:00]} 56. Kh3 {[%emt 0:00:01]} Kf4 {[%emt 0:00:00]} 57. Kg2 {[%emt 0:00:02]} Ra3 {[%emt 0:00:00]} 58. Kf2 {[%emt 0:00:02]} Ra2+ {[%emt 0:00:00]} 59. Kg1 {[%emt 0:00:02]} Kg3 {[%emt 0:00:00]} 60. Kf1 {[%emt 0:00:01]} f4 {[%emt 0:00:00]} 61. Ke1 {[%emt 0:00:03]} f3 {[%emt 0:00:00]} 0-1

[Event "EWIBCC 2019"]
[Site "Monte-Carlo"]
[Date "2019.11.29"]
[Round "7.16"]
[White "Janzelj, Lara"]
[Black "Osmak, Iulija"]
[Result "1-0"]
[ECO "A90"]
[WhiteElo "2158"]
[BlackElo "2401"]
[Annotator "ChessBase"]
[PlyCount "26"]
[EventDate "2019.11.29"]
[EventType "swiss"]
[EventCountry "MNC"]
[SourceTitle "playchess.com"]
[Source "ChessBase"]
[SourceQuality "1"]
[TimeControl "180+2"]

1. d4 {[%emt 0:00:00]} e6 {[%emt 0:00:01]} 2. Nf3 {[%emt 0:00:00]} f5 {[%emt 0:00:01]} 3. c4 {[%emt 0:00:01]} d5 {[%emt 0:00:02]} 4. g3 {[%emt 0:00:02]} c6 {[%emt 0:00:03]} 5. Bg2 {[%emt 0:00:01]} Bd6 {[%emt 0:00:01]} 6. b3 {[%emt 0:00:01]} Qe7 {[%emt 0:00:01]} 7. O-O {[%emt 0:00:02]} Nf6 {[%emt 0:00:01]} 8. Bf4 {[%emt 0:00:01]} Bxf4 {[%emt 0:00:04]} 9. gxf4 {[%emt 0:00:01]} Nbd7 {[%emt 0:00:05]} 10. Nbd2 {[%emt 0:00:03]} Ne4 {[%emt 0:00:05]} 11. e3 {[%emt 0:00:07]} O-O {[%emt 0:00:05]} 12. Kh1 {[%emt 0:00:06]} Ndf6 {[%emt 0:00:10]} 13. Ne5 {[%emt 0:00:11]} Bd7 {[%emt 0:00:18]} 1-0

[Event "EWIBCC 2019"]
[Site "Monte-Carlo"]
[Date "2019.11.29"]
[Round "7.17"]
[White "Benmesbah, Natacha"]
[Black "Zhukova, Natalia"]
[Result "0-1"]
[ECO "C54"]
[WhiteElo "2265"]
[BlackElo "2323"]
[Annotator "NA"]
[PlyCount "90"]
[EventDate "2019.11.29"]
[EventType "swiss"]
[EventCountry "MNC"]
[SourceTitle "playchess.com"]
[Source "ChessBase"]
[SourceQuality "1"]
[TimeControl "180+2"]

1. e4 {[%emt 0:00:00]} e5 {[%emt 0:00:00]} 2. Nf3 {[%emt 0:00:00]} Nc6 {[%emt 0:00:00]} 3. Bc4 {[%emt 0:00:01]} Nf6 {[%emt 0:00:02]} 4. d3 {[%emt 0:00:01]} Bc5 {[%emt 0:00:05]} 5. c3 {[%emt 0:00:01]} O-O {[%emt 0:00:01]} 6. Bg5 {[%emt 0:00:06]} h6 {[%emt 0:00:03]} 7. Bh4 {[%emt 0:00:02]} Be7 {[%emt 0:00:04]} 8. Nbd2 {[%emt 0:00:11]} d6 {[%emt 0:00:01]} 9. Bb3 {[%emt 0:00:16]} Nh5 {[%emt 0:00:26]} 10. g3 {[%emt 0:00:17]} Bh3 {[%emt 0:00:29]} 11. Bxe7 {[%emt 0:00:53]} Qxe7 {[%emt 0:00:01]} 12. Nh4 {[%emt 0:00:02]} Nf4 {[%emt 0:00:11]} 13. gxf4 {[%emt 0:00:25]} Qxh4 {[%emt 0:00:02]} 14. Qf3 {[%emt 0:00:01]} exf4 {[%emt 0:00:08]} 15. Rg1 {[%emt 0:00:02]} Ne5 {[%emt 0:00:07]} 16. Qe2 {[%emt 0:00:04]} Bg4 {[%emt 0:00:17]} 17. Qf1 {[%emt 0:00:02]} Nf3+ {[%emt 0:00:26]} 18. Nxf3 {[%emt 0:00:02]} Bxf3 {[%emt 0:00:01]} 19. Kd2 {[%emt 0:00:19]} c6 {[%emt 0:00:05]} 20. Re1 {[%emt 0:00:02]} a5 {[%emt 0:00:05]} 21. a3 {[%emt 0:00:05]} b5 {[%emt 0:00:02]} 22. d4 {[%emt 0:00:08]} b4 {[%emt 0:00:07]} 23. Qd3 {[%emt 0:00:11]} bxc3+ {[%emt 0:00:12]} 24. Kxc3 {[%emt 0:00:07]} Bh5 {[%emt 0:00:11]} 25. f3 {[%emt 0:00:16]} Rab8 {[%emt 0:00:07]} 26. Kc2 {[%emt 0:00:01]} c5 {[%emt 0:00:05]} 27. dxc5 {[%emt 0:00:02]} dxc5 {[%emt 0:00:00]} 28. Kb1 {[%emt 0:00:01]} Rfd8 {[%emt 0:00:18]} 29. Qc4 {[%emt 0:00:02]} Qf2 {[%emt 0:00:15]} 30. Qc3 {[%emt 0:00:05]} Qd4 {[%emt 0:00:04]} 31. Qxd4 {[%emt 0:00:02]} Rxd4 {[%emt 0:00:02]} 32. Rc1 {[%emt 0:00:01]} Bxf3 {[%emt 0:00:03]} 33. Rxc5 {[%emt 0:00:02]} Rxb3 {[%emt 0:00:02]} 34. Rc8+ {[%emt 0:00:01]} Kh7 {[%emt 0:00:00]} 35. Ka2 {[%emt 0:00:00]} a4 {[%emt 0:00:02]} 36. Rc7 {[%emt 0:00:02]} Bh5 {[%emt 0:00:04]} 37. e5 {[%emt 0:00:01]} Rd2 {[%emt 0:00:02]} 38. e6 {[%emt 0:00:01]} Rbxb2+ {[%emt 0:00:02]} 39. Ka1 {[%emt 0:00:00]} Ra2+ 40. Kb1 Bg6+ {[%emt 0:00:03]} 41. Kc1 {[%emt 0:00:02]} Rdc2+ {[%emt 0:00:02]} 42. Rxc2 {[%emt 0:00:01]} Rxc2+ {[%emt 0:00:01]} 43. Kd1 {[%emt 0:00:00]} Rc8 {[%emt 0:00:03]} 44. e7 {[%emt 0:00:02]} Re8 {[%emt 0:00:01]} 45. Re1 {[%emt 0:00:00]} f5 {[%emt 0:00:02]} 0-1

[Event "EWIBCC 2019"]
[Site "Monte-Carlo"]
[Date "2019.11.29"]
[Round "7.18"]
[White "Gaprindashvili, Nona"]
[Black "Worek, Joanna"]
[Result "0-1"]
[ECO "A57"]
[WhiteElo "2275"]
[BlackElo "2316"]
[Annotator "NA"]
[PlyCount "144"]
[EventDate "2019.11.29"]
[EventType "swiss"]
[EventCountry "MNC"]
[SourceTitle "playchess.com"]
[Source "ChessBase"]
[SourceQuality "1"]
[TimeControl "180+2"]

1. d4 {[%emt 0:00:00]} Nf6 {[%emt 0:00:00]} 2. c4 {[%emt 0:00:00]} c5 {[%emt 0:00:01]} 3. d5 {[%emt 0:00:01]} b5 {[%emt 0:00:01]} 4. cxb5 {[%emt 0:00:17]} a6 {[%emt 0:00:01]} 5. b6 {[%emt 0:00:07]} d6 {[%emt 0:00:18]} 6. Nc3 {[%emt 0:00:03]} Nbd7 {[%emt 0:00:07]} 7. e4 {[%emt 0:00:04]} Qxb6 {[%emt 0:00:05]} 8. Nf3 {[%emt 0:00:10]} g6 {[%emt 0:00:03]} 9. Be2 {[%emt 0:00:09]} Bg7 {[%emt 0:00:02]} 10. O-O {[%emt 0:00:03]} O-O {[%emt 0:00:02]} 11. Qc2 {[%emt 0:00:03]} a5 {[%emt 0:00:12]} 12. Nd2 {[%emt 0:00:02]} Ba6 {[%emt 0:00:03]} 13. Nc4 {[%emt 0:00:02]} Bxc4 {[%emt 0:00:04]} 14. Bxc4 {[%emt 0:00:01]} a4 {[%emt 0:00:34]} 15. Bg5 {[%emt 0:00:16]} a3 {[%emt 0:00:17]} 16. Rab1 {[%emt 0:00:07]} axb2 {[%emt 0:00:05]} 17. Rxb2 {[%emt 0:00:02]} Qa5 {[%emt 0:00:14]} 18. Rb5 {[%emt 0:00:15]} Qc7 {[%emt 0:00:15]} 19. a4 {[%emt 0:00:05]} Ne5 {[%emt 0:00:08]} 20. Be2 {[%emt 0:00:04]} c4 {[%emt 0:00:01]} 21. Rfb1 {[%emt 0:00:04]} h6 {[%emt 0:00:06]} 22. Be3 {[%emt 0:00:02]} Rfc8 {[%emt 0:00:16]} 23. Bb6 {[%emt 0:00:10]} Qd7 {[%emt 0:00:01]} 24. a5 {[%emt 0:00:03]} Nd3 {[%emt 0:00:08]} 25. Bxd3 {[%emt 0:00:07]} cxd3 {[%emt 0:00:01]} 26. Qxd3 {[%emt 0:00:01]} Ng4 {[%emt 0:00:04]} 27. Bd4 {[%emt 0:00:09]} Ne5 {[%emt 0:00:08]} 28. Bxe5 {[%emt 0:00:13]} Bxe5 {[%emt 0:00:02]} 29. Na4 {[%emt 0:00:02]} Qc7 {[%emt 0:00:16]} 30. g3 {[%emt 0:00:07]} Rxa5 {[%emt 0:00:01]} 31. Nb6 {[%emt 0:00:22]} Rb8 {[%emt 0:00:02]} 32. Rxa5 {[%emt 0:00:04]} Rxb6 {[%emt 0:00:01]} 33. Rab5 {[%emt 0:00:02]} Rxb5 {[%emt 0:00:27]} 34. Qxb5 {[%emt 0:00:02]} Qc2 {[%emt 0:00:00]} 35. Re1 {[%emt 0:00:11]} Bd4 {[%emt 0:00:00]} 36. Re2 {[%emt 0:00:02]} Qd1+ {[%emt 0:00:00]} 37. Kg2 {[%emt 0:00:01]} Kg7 {[%emt 0:00:00]} 38. Qc4 {[%emt 0:00:07]} Bc5 {[%emt 0:00:00]} 39. Qc3+ {[%emt 0:00:02]} Bd4 {[%emt 0:00:00]} 40. Qc2 {[%emt 0:00:02]} Qa1 {[%emt 0:00:00]} 41. h4 {[%emt 0:00:02]} h5 {[%emt 0:00:00]} 42. Qd2 {[%emt 0:00:02]} Bc5 {[%emt 0:00:00]} 43. Qf4 {[%emt 0:00:03]} Bd4 {[%emt 0:00:00]} 44. Qf3 {[%emt 0:00:02]} Qd1 {[%emt 0:00:00]} 45. Re3 {[%emt 0:00:02]} Qb1 {[%emt 0:00:00]} 46. Rd3 {[%emt 0:00:01]} Be5 {[%emt 0:00:00]} 47. Qe2 {[%emt 0:00:01]} Qb5 {[%emt 0:00:00]} 48. f4 {[%emt 0:00:02]} Bd4 {[%emt 0:00:00]} 49. Qd2 {[%emt 0:00:03]} Bc5 {[%emt 0:00:00]} 50. Qc3+ {[%emt 0:00:02]} f6 {[%emt 0:00:00]} 51. e5 {[%emt 0:00:01]} Qb1 {[%emt 0:00:01]} 52. exf6+ {[%emt 0:00:02]} exf6 {[%emt 0:00:01]} 53. Qd2 {[%emt 0:00:05]} Qg1+ {[%emt 0:00:01]} 54. Kh3 {[%emt 0:00:08]} Qh1+ {[%emt 0:00:01]} 55. Qh2 {[%emt 0:00:03]} Qf1+ {[%emt 0:00:01]} 56. Qg2 {[%emt 0:00:01]} Qxd3 {[%emt 0:00:00]} 57. Qh1 {[%emt 0:00:17]} Bf2 {[%emt 0:00:05]} 58. Qg2 {[%emt 0:00:00]} Bxg3 {[%emt 0:00:02]} 59. Qxg3 {[%emt 0:00:01]} Qxd5 {[%emt 0:00:01]} 60. Qe3 {[%emt 0:00:02]} Qf5+ {[%emt 0:00:01]} 61. Kg3 {[%emt 0:00:01]} Qg4+ {[%emt 0:00:01]} 62. Kh2 {[%emt 0:00:02]} Qxh4+ {[%emt 0:00:00]} 63. Kg2 {[%emt 0:00:00]} Qg4+ {[%emt 0:00:02]} 64. Kf2 {[%emt 0:00:01]} Kh6 {[%emt 0:00:07]} 65. f5+ {[%emt 0:00:01]} g5 {[%emt 0:00:01]} 66. Qe6 {[%emt 0:00:02]} Qf4+ {[%emt 0:00:03]} 67. Kg2 {[%emt 0:00:01]} Qe5 {[%emt 0:00:03]} 68. Qd7 {[%emt 0:00:04]} g4 {[%emt 0:00:07]} 69. Qc8 {[%emt 0:00:02]} Kg5 {[%emt 0:00:03]} 70. Qc1+ {[%emt 0:00:10]} Kxf5 {[%emt 0:00:01]} 71. Qc8+ {[%emt 0:00:04]} Kg5 {[%emt 0:00:02]} 72. Qg8+ {[%emt 0:00:01]} Kh4 {[%emt 0:00:01]} 0-1

[Event "EWIBCC 2019"]
[Site "Monte-Carlo"]
[Date "2019.11.29"]
[Round "7.19"]
[White "Dornbusch, Tatiana"]
[Black "Novkovic, Julia"]
[Result "1-0"]
[ECO "A41"]
[WhiteElo "2269"]
[BlackElo "2161"]
[Annotator "NA"]
[PlyCount "35"]
[EventDate "2019.11.29"]
[EventType "swiss"]
[EventCountry "MNC"]
[SourceTitle "playchess.com"]
[Source "ChessBase"]
[SourceQuality "1"]
[TimeControl "180+2"]

1. d4 {[%emt 0:00:00]} g6 {[%emt 0:00:00]} 2. Nf3 {[%emt 0:00:00]} Bg7 {[%emt 0:00:00]} 3. g3 {[%emt 0:00:01]} d6 {[%emt 0:00:01]} 4. Bg2 {[%emt 0:00:02]} Nc6 {[%emt 0:00:01]} 5. O-O {[%emt 0:00:09]} e5 {[%emt 0:00:03]} 6. d5 {[%emt 0:00:11]} Nce7 {[%emt 0:00:02]} 7. e4 {[%emt 0:00:04]} h5 {[%emt 0:00:15]} 8. Nc3 {[%emt 0:00:23]} Bh6 {[%emt 0:00:10]} 9. Ng5 {[%emt 0:00:19]} h4 {[%emt 0:00:12]} 10. Qf3 {[%emt 0:00:22]} f6 {[%emt 0:00:48]} 11. Ne6 {[%emt 0:00:01]} Bxe6 {[%emt 0:00:21]} 12. dxe6 {[%emt 0:00:01]} Nc6 {[%emt 0:00:02]} 13. Qg4 {[%emt 0:00:11]} Nce7 {[%emt 0:00:16]} 14. Qxh4 {[%emt 0:00:07]} Bg7 {[%emt 0:00:11]} 15. Qg4 {[%emt 0:00:03]} c6 {[%emt 0:00:12]} 16. Be3 {[%emt 0:00:10]} f5 {[%emt 0:00:13]} 17. exf5 {[%emt 0:00:02]} Nxf5 {[%emt 0:00:08]} 18. Qxg6+ {[%emt 0:00:02]} 1-0